fUSD/lending_fUSD_20241105
["ID","MTS","AMOUNT","RATE_DAILY","PERIOD"]
[341351652,1730819444881,-7233.49,0.00029041,2]
[341351653,1730819444895,-500.0,0.00029041,2]
[341351654,1730819444905,-530.43,0.00029041,2]
[341351655,1730819444914,-1898.53,0.00029041,2]
[341351656,1730819444924,-1595.33,0.00029041,2]
[341351657,1730819444933,-500.0,0.00029041,2]
[341351658,1730819444943,-500.0,0.00029041,2]
[341351659,1730819444953,-500.0,0.00029041,2]
[341351660,1730819444964,-500.0,0.00029041,2]
[341351661,1730819444974,-500.0,0.00029041,2]
[341351662,1730819444985,-1009.22,0.00029041,2]
[341351663,1730819444994,-863.18,0.00029041,2]
[341351664,1730819445004,-1536.44,0.00029041,2]
[341351665,1730819445014,-1852.07,0.00029314,2]
[341351666,1730819445023,-270.45336827,0.00029315,2]
[341351667,1730819445033,-3047.56,0.00029315,2]
[341351668,1730819445043,-500.0,0.00029315,2]
[341351669,1730819445053,-500.0,0.00029315,2]
[341351670,1730819445061,-500.0,0.00029315,2]
[341351671,1730819445071,-1214.78,0.00029315,2]
[341351672,1730819445079,-500.0,0.00029315,2]
[341351673,1730819445088,-1425.86,0.00029315,2]
[341351674,1730819445097,-1289.96,0.00029315,2]
[341351675,1730819445106,-183.64899086,0.00029315,2]
[341351676,1730819445116,-513.76,0.00029315,2]
[341351677,1730819445125,-1714.86,0.00029315,2]
[341351678,1730819445135,-1000.0,0.00029315,2]
[341351679,1730819445147,-1114.48,0.00029315,2]
[341351680,1730819445156,-7852.59,0.00029315,2]
[341351681,1730819445166,-1717.24,0.00029315,2]
[341351682,1730819445175,-802.28,0.00029315,2]
[341351683,1730819445185,-997.2,0.00029315,2]
[341351684,1730819445195,-1286.7,0.00029315,2]
[341351685,1730819445205,-500.0,0.00029315,2]
[341351686,1730819445215,-1527.77,0.00029315,2]
[341351687,1730819445228,-7233.49,0.00029315,2]
[341351688,1730819445239,-530.43,0.00029315,2]
[341351689,1730819445248,-500.0,0.00029315,2]
[341351690,1730819445259,-1898.53,0.00029315,2]
[341351691,1730819445269,-1595.33,0.00029315,2]
[341351692,1730819445280,-251.03510126,0.00029315,2]
[341351693,1730819445291,-505.74944156,0.00029315,2]
[341351694,1730819445302,-500.0,0.00029315,2]
[341351695,1730819445312,-500.0,0.00029315,2]
[341351696,1730819445322,-500.0,0.00029315,2]
[341351697,1730819445332,-1009.22,0.00029315,2]
[341351698,1730819445342,-863.18,0.00029315,2]
[341351699,1730819445352,-1536.44,0.00029315,2]
[341351700,1730819445362,-198.09,0.00029405,2]
[341351701,1730819445372,-150.12145897,0.00029489,2]
[341351702,1730819445383,-501.37140738,0.00029506,5]
[341351703,1730819445395,-3047.56,0.00029589,2]
[341351704,1730819445406,-500.0,0.00029589,2]
[341351705,1730819445416,-500.0,0.00029589,2]
[341351706,1730819445426,-500.0,0.00029589,2]
[341351707,1730819445436,-1214.78,0.00029589,2]
[341351708,1730819445445,-500.0,0.00029589,2]
[341351709,1730819445455,-1425.86,0.00029589,2]
[341351710,1730819445466,-1289.96,0.00029589,2]
[341351711,1730819445477,-513.76,0.00029589,2]
[341351712,1730819445487,-1714.86,0.00029589,2]
[341351713,1730819445497,-1000.0,0.00029589,2]
[341351714,1730819445507,-1114.48,0.00029589,2]
[341351715,1730819445517,-7852.59,0.00029589,2]
[341351716,1730819445527,-1717.24,0.00029589,2]
[341351717,1730819445538,-802.28,0.00029589,2]
[341351719,1730819445548,-997.2,0.00029589,2]
[341351721,1730819445560,-1286.7,0.00029589,2]
[341351723,1730819445570,-500.0,0.00029589,2]
[341351724,1730819445581,-1527.77,0.00029589,2]
[341351725,1730819445591,-7233.49,0.00029589,2]
[341351726,1730819445602,-500.0,0.00029589,2]
[341351728,1730819445613,-530.43,0.00029589,2]
[341351730,1730819445623,-1898.53,0.00029589,2]
[341351732,1730819445633,-1595.33,0.00029589,2]
[341351734,1730819445644,-500.0,0.00029589,2]
[341351735,1730819445654,-500.0,0.00029589,2]
[341351737,1730819445665,-500.0,0.00029589,2]
[341351738,1730819445676,-1009.22,0.00029589,2]
[341351739,1730819445686,-863.18,0.00029589,2]
[341351741,1730819445696,-1536.44,0.00029589,2]
[341351742,1730819445706,-307.57,0.00029822,2]
[341351744,1730819445716,-451.0,0.00029825,2]
[341351745,1730819445725,-511.0,0.00029825,2]
[341351746,1730819445735,-807.0,0.00029825,2]
[341351747,1730819445746,-962.0,0.00029825,2]
[341351748,1730819445757,-3047.56,0.00029863,2]
[341351749,1730819445767,-500.0,0.00029863,2]
[341351750,1730819445777,-275.50485623,0.00029863,2]
[341351752,1730819445787,-500.0,0.00029863,2]
[341351754,1730819445797,-1214.78,0.00029863,2]
[341351755,1730819445809,-500.0,0.00029863,2]
[341351756,1730819445820,-1425.86,0.00029863,2]
[341351757,1730819445831,-1289.96,0.00029863,2]
[341351758,1730819445840,-513.76,0.00029863,2]
[341351759,1730819445851,-1714.86,0.00029863,2]
[341351760,1730819445860,-1000.0,0.00029863,2]
[341351761,1730819445870,-1114.48,0.00029863,2]
[341351762,1730819445880,-7852.59,0.00029863,2]
[341351763,1730819445893,-1717.24,0.00029863,2]
[341351764,1730819445904,-802.28,0.00029863,2]
[341351765,1730819445914,-997.2,0.00029863,2]
[341351766,1730819445923,-1286.7,0.00029863,2]
[341351767,1730819445934,-500.0,0.00029863,2]
[341351768,1730819445944,-1527.77,0.00029863,2]
[341351769,1730819445954,-7233.49,0.00029863,2]
[341351770,1730819445963,-500.0,0.00029863,2]
[341351771,1730819445973,-530.43,0.00029863,2]
[341351772,1730819445983,-1898.53,0.00029863,2]
[341351773,1730819445993,-1595.33,0.00029863,2]
[341351774,1730819446003,-500.0,0.00029863,2]
[341351775,1730819446013,-500.0,0.00029863,2]
[341351776,1730819446023,-500.0,0.00029863,2]
[341351777,1730819446033,-1009.22,0.00029863,2]
[341351778,1730819446043,-863.18,0.00029863,2]
[341351779,1730819446053,-1536.44,0.00029863,2]
[341351780,1730819446063,-3047.56,0.00030136,2]
[341351781,1730819446073,-500.0,0.00030136,2]
[341351782,1730819446083,-500.0,0.00030136,2]
[341351783,1730819446093,-1214.78,0.00030136,2]
[341351784,1730819446103,-500.0,0.00030136,2]
[341351785,1730819446112,-1425.86,0.00030136,2]
[341351786,1730819446122,-1289.96,0.00030136,2]
[341351787,1730819446132,-513.76,0.00030136,2]
[341351788,1730819446144,-1714.86,0.00030136,2]
[341351789,1730819446153,-1000.0,0.00030136,2]
[341351790,1730819446164,-1114.48,0.00030136,2]
[341351791,1730819446174,-7852.59,0.00030136,2]
[341351792,1730819446184,-1717.24,0.00030136,2]
[341351793,1730819446193,-802.28,0.00030136,2]
[341351794,1730819446202,-997.2,0.00030136,2]
[341351795,1730819446212,-1286.7,0.00030136,2]
[341351796,1730819446222,-500.0,0.00030136,2]
[341351797,1730819446231,-1527.77,0.00030136,2]
[341351798,1730819446241,-7233.49,0.00030136,2]
[341351799,1730819446251,-500.0,0.00030136,2]
[341351800,1730819446260,-530.43,0.00030136,2]
[341351801,1730819446270,-1898.53,0.00030136,2]
[341351803,1730819446280,-1595.33,0.00030136,2]
[341351805,1730819446290,-485.69978499,0.00030136,2]
[341351807,1730819446300,-500.0,0.00030136,2]
[341351808,1730819446310,-500.0,0.00030136,2]
[341351809,1730819446320,-1009.22,0.00030136,2]
[341351810,1730819446331,-863.18,0.00030136,2]
[341351811,1730819446341,-1536.44,0.00030136,2]
[341351812,1730819446351,-1500.0,0.00030137,2]
[341351813,1730819446360,-167.11,0.00030168,2]
[341351814,1730819446371,-162.47,0.00030352,2]
[341351815,1730819446381,-3047.56,0.0003041,2]
[341351816,1730819446393,-500.0,0.0003041,2]
[341351817,1730819446403,-287.31141312,0.0003041,2]
[341351818,1730819446413,-1214.78,0.0003041,2]
[341351819,1730819446423,-500.0,0.0003041,2]
[341351820,1730819446432,-1425.86,0.0003041,2]
[341351821,1730819446442,-1289.96,0.0003041,2]
[341351822,1730819446452,-513.76,0.0003041,2]
[341351824,1730819446461,-1714.86,0.0003041,2]
[341351825,1730819446471,-1000.0,0.0003041,2]
[341351827,1730819446481,-1114.48,0.0003041,2]
[341351828,1730819446490,-7852.59,0.0003041,2]
[341351829,1730819446500,-1717.24,0.0003041,2]
[341351830,1730819446509,-802.28,0.0003041,2]
[341351831,1730819446519,-997.2,0.0003041,2]
[341351832,1730819446529,-1286.7,0.0003041,2]
[341351833,1730819446538,-500.0,0.0003041,2]
[341351834,1730819446547,-1527.77,0.0003041,2]
[341351835,1730819446557,-7233.49,0.0003041,2]
[341351836,1730819446566,-500.0,0.0003041,2]
[341351837,1730819446575,-530.43,0.0003041,2]
[341351838,1730819446585,-1898.53,0.0003041,2]
[341351839,1730819446594,-1595.33,0.0003041,2]
[341351840,1730819446604,-500.0,0.0003041,2]
[341351841,1730819446613,-500.0,0.0003041,2]
[341351842,1730819446623,-1009.22,0.0003041,2]
[341351843,1730819446632,-863.18,0.0003041,2]
[341351844,1730819446642,-1536.44,0.0003041,2]
[341351845,1730819446652,-1852.07,0.00030683,2]
[341351846,1730819446662,-3047.56,0.00030684,2]
[341351847,1730819446671,-500.0,0.00030684,2]
[341351848,1730819446682,-1214.78,0.00030684,2]
[341351849,1730819446691,-500.0,0.00030684,2]
[341351850,1730819446700,-1425.86,0.00030684,2]
[341351851,1730819446710,-1289.96,0.00030684,2]
[341351852,1730819446719,-513.76,0.00030684,2]
[341351853,1730819446728,-1714.86,0.00030684,2]
[341351854,1730819446738,-1000.0,0.00030684,2]
[341351855,1730819446747,-1114.48,0.00030684,2]
[341351856,1730819446757,-7852.59,0.00030684,2]
[341351857,1730819446766,-1717.24,0.00030684,2]
[341351858,1730819446775,-802.28,0.00030684,2]
[341351859,1730819446785,-997.2,0.00030684,2]
[341351860,1730819446794,-1286.7,0.00030684,2]
[341351861,1730819446804,-500.0,0.00030684,2]
[341351862,1730819446815,-1527.77,0.00030684,2]
[341351863,1730819446824,-7233.49,0.00030684,2]
[341351864,1730819446835,-500.0,0.00030684,2]
[341351865,1730819446845,-530.43,0.00030684,2]
[341351866,1730819446856,-1898.53,0.00030684,2]
[341351867,1730819446864,-1595.33,0.00030684,2]
[341351868,1730819446872,-500.0,0.00030684,2]
[341351869,1730819446880,-500.0,0.00030684,2]
[341351870,1730819446893,-1009.22,0.00030684,2]
[341351871,1730819446901,-863.18,0.00030684,2]
[341351872,1730819446910,-1536.44,0.00030684,2]
[341351873,1730819446918,-154.52366931,0.00030858,2]
[341351874,1730819446927,-3047.56,0.00030958,2]
[341351875,1730819446935,-500.0,0.00030958,2]
[341351876,1730819447020,-1214.78,0.00030958,2]
[341351877,1730819447038,-500.0,0.00030958,2]
[341351878,1730819447049,-1425.86,0.00030958,2]
[341351879,1730819447059,-1289.96,0.00030958,2]
[341351880,1730819447068,-513.76,0.00030958,2]
[341351881,1730819447077,-1714.86,0.00030958,2]
[341351882,1730819447087,-1000.0,0.00030958,2]
[341351883,1730819447096,-1114.48,0.00030958,2]
[341351884,1730819447106,-7852.59,0.00030958,2]
[341351885,1730819447116,-1717.24,0.00030958,2]
[341351886,1730819447125,-802.28,0.00030958,2]
[341351887,1730819447134,-997.2,0.00030958,2]
[341351888,1730819447146,-1286.7,0.00030958,2]
[341351889,1730819447156,-500.0,0.00030958,2]
[341351890,1730819447165,-1527.77,0.00030958,2]
[341351891,1730819447175,-7233.49,0.00030958,2]
[341351892,1730819447185,-500.0,0.00030958,2]
[341351893,1730819447195,-530.43,0.00030958,2]
[341351894,1730819447204,-1898.53,0.00030958,2]
[341351895,1730819447214,-1595.33,0.00030958,2]
[341351896,1730819447224,-500.0,0.00030958,2]
[341351897,1730819447233,-584.5672564,0.00030958,2]
[341351898,1730819447242,-1009.22,0.00030958,2]
[341351899,1730819447252,-863.18,0.00030958,2]
[341351900,1730819447262,-1536.44,0.00030958,2]
[341351901,1730819447271,-1000.0,0.0003111,2]
[341351902,1730819447281,-165.41801596,0.00031132,2]
[341351903,1730819447291,-3047.56,0.00031232,2]
[341351904,1730819447300,-500.0,0.00031232,2]
[341351905,1730819447310,-1214.78,0.00031232,2]
[341351906,1730819447320,-500.0,0.00031232,2]
[341351907,1730819447330,-1425.86,0.00031232,2]
[341351908,1730819447340,-1289.96,0.00031232,2]
[341351909,1730819447349,-513.76,0.00031232,2]
[341351910,1730819447359,-1714.86,0.00031232,2]
[341351911,1730819447368,-1000.0,0.00031232,2]
[341351912,1730819447379,-1114.48,0.00031232,2]
[341351913,1730819447390,-7852.59,0.00031232,2]
[341351914,1730819447400,-1717.24,0.00031232,2]
[341351915,1730819447409,-802.28,0.00031232,2]
[341351916,1730819447419,-997.2,0.00031232,2]
[341351917,1730819447428,-1286.7,0.00031232,2]
[341351918,1730819447438,-500.0,0.00031232,2]
[341351919,1730819447447,-1527.77,0.00031232,2]
[341351920,1730819447456,-7233.49,0.00031232,2]
[341351921,1730819447466,-530.43,0.00031232,2]
[341351922,1730819447477,-500.0,0.00031232,2]
[341351923,1730819447487,-1898.53,0.00031232,2]
[341351924,1730819447496,-1595.33,0.00031232,2]
[341351925,1730819447507,-500.0,0.00031232,2]
[341351926,1730819447516,-1009.22,0.00031232,2]
[341351927,1730819447526,-863.18,0.00031232,2]
[341351928,1730819447536,-1536.44,0.00031232,2]
[341351929,1730819447547,-3047.56,0.00031506,2]
[341351930,1730819447556,-500.0,0.00031506,2]
[341351931,1730819447565,-1214.78,0.00031506,2]
[341351932,1730819447575,-500.0,0.00031506,2]
[341351933,1730819447585,-1425.86,0.00031506,2]
[341351934,1730819447595,-1289.96,0.00031506,2]
[341351935,1730819447604,-513.76,0.00031506,2]
[341351936,1730819447614,-1714.86,0.00031506,2]
[341351937,1730819447624,-1000.0,0.00031506,2]
[341351938,1730819447634,-1114.48,0.00031506,2]
[341351939,1730819447645,-7852.59,0.00031506,2]
[341351940,1730819447655,-1717.24,0.00031506,2]
[341351941,1730819447665,-802.28,0.00031506,2]
[341351942,1730819447675,-997.2,0.00031506,2]
[341351943,1730819447684,-1286.7,0.00031506,2]
[341351944,1730819447694,-500.0,0.00031506,2]
[341351945,1730819447703,-1527.77,0.00031506,2]
[341351946,1730819447712,-7233.49,0.00031506,2]
[341351947,1730819447722,-530.43,0.00031506,2]
[341351948,1730819447732,-500.0,0.00031506,2]
[341351949,1730819447741,-1898.53,0.00031506,2]
[341351950,1730819447751,-1595.33,0.00031506,2]
[341351951,1730819447760,-500.0,0.00031506,2]
[341351952,1730819447769,-1009.22,0.00031506,2]
[341351953,1730819447778,-863.18,0.00031506,2]
[341351954,1730819447788,-1536.44,0.00031506,2]
[341351955,1730819447798,-167.11,0.00031663,2]
[341351956,1730819447808,-10441.3667,0.0003168,2]
[341351957,1730819447820,-1801.1695,0.0003168,2]
[341351958,1730819447830,-1160.8563,0.0003168,2]
[341351959,1730819447840,-3047.56,0.0003178,2]
[341351960,1730819447850,-500.0,0.0003178,2]
[341351961,1730819447859,-1214.78,0.0003178,2]
[341351962,1730819447869,-500.0,0.0003178,2]
[341351963,1730819447878,-1425.86,0.0003178,2]
[341351964,1730819447888,-1289.96,0.0003178,2]
[341351965,1730819447904,-513.76,0.0003178,2]
[341351966,1730819447913,-1714.86,0.0003178,2]
[341351967,1730819447922,-1000.0,0.0003178,2]
[341351968,1730819447932,-1114.48,0.0003178,2]
[341351969,1730819447942,-7852.59,0.0003178,2]
[341351970,1730819447951,-1717.24,0.0003178,2]
[341351971,1730819447961,-802.28,0.0003178,2]
[341351972,1730819447970,-997.2,0.0003178,2]
[341351973,1730819447979,-1286.7,0.0003178,2]
[341351974,1730819447989,-419.40327302,0.0003178,2]
[341351975,1730819447999,-1527.77,0.0003178,2]
[341351976,1730819448008,-7233.49,0.0003178,2]
[341351977,1730819448018,-530.43,0.0003178,2]
[341351978,1730819448028,-500.0,0.0003178,2]
[341351979,1730819448038,-1898.53,0.0003178,2]
[341351980,1730819448047,-1595.33,0.0003178,2]
[341351981,1730819448057,-500.0,0.0003178,2]
[341351982,1730819448066,-1009.22,0.0003178,2]
[341351983,1730819448076,-863.18,0.0003178,2]
[341351984,1730819448086,-1536.44,0.0003178,2]
[341351985,1730819448095,-213.3921,0.00031954,2]
[341351986,1730819448105,-997.1,0.00032,2]
[341351987,1730819448115,-1852.07,0.00032053,2]
[341351988,1730819448126,-3047.56,0.00032054,2]
[341351989,1730819448135,-500.0,0.00032054,2]
[341351990,1730819448146,-1214.78,0.00032054,2]
[341351991,1730819448155,-500.0,0.00032054,2]
[341351992,1730819448164,-1425.86,0.00032054,2]
[341351993,1730819448174,-1289.96,0.00032054,2]
[341351994,1730819448184,-513.76,0.00032054,2]
[341351995,1730819448194,-1714.86,0.00032054,2]
[341351996,1730819448204,-1000.0,0.00032054,2]
[341351997,1730819448213,-1114.48,0.00032054,2]
[341351998,1730819448223,-7852.59,0.00032054,2]
[341351999,1730819448233,-1717.24,0.00032054,2]
[341352000,1730819448243,-802.28,0.00032054,2]
[341352001,1730819448253,-997.2,0.00032054,2]
[341352002,1730819448262,-1286.7,0.00032054,2]
[341352003,1730819448272,-1527.77,0.00032054,2]
[341352004,1730819448282,-7233.49,0.00032054,2]
[341352005,1730819448291,-500.0,0.00032054,2]
[341352006,1730819448301,-530.43,0.00032054,2]
[341352007,1730819448311,-1898.53,0.00032054,2]
[341352008,1730819448321,-1595.33,0.00032054,2]
[341352009,1730819448330,-500.0,0.00032054,2]
[341352010,1730819448339,-1009.22,0.00032054,2]
[341352011,1730819448350,-863.18,0.00032054,2]
[341352012,1730819448359,-1536.44,0.00032054,2]
[341352013,1730819448369,-307.57,0.00032086,2]
[341352014,1730819448379,-544.1,0.00032124,2]
[341352015,1730819448389,-3047.56,0.00032328,2]
[341352016,1730819448400,-500.0,0.00032328,2]
[341352017,1730819448410,-1214.78,0.00032328,2]
[341352018,1730819448420,-500.0,0.00032328,2]
[341352019,1730819448430,-1425.86,0.00032328,2]
[341352020,1730819448440,-1289.96,0.00032328,2]
[341352021,1730819448450,-513.76,0.00032328,2]
[341352022,1730819448459,-1714.86,0.00032328,2]
[341352023,1730819448469,-1000.0,0.00032328,2]
[341352024,1730819448479,-1114.48,0.00032328,2]
[341352025,1730819448489,-7852.59,0.00032328,2]
[341352026,1730819448499,-1717.24,0.00032328,2]
[341352027,1730819448509,-802.28,0.00032328,2]
[341352028,1730819448519,-997.2,0.00032328,2]
[341352029,1730819448529,-1286.7,0.00032328,2]
[341352030,1730819448539,-1527.77,0.00032328,2]
[341352031,1730819448548,-7233.49,0.00032328,2]
[341352032,1730819448558,-282.09608511,0.00032328,2]
[341352033,1730819448568,-530.43,0.00032328,2]
[341352034,1730819448578,-1898.53,0.00032328,2]
[341352035,1730819448587,-1595.33,0.00032328,2]
[341352036,1730819448597,-500.0,0.00032328,2]
[341352037,1730819448606,-1009.22,0.00032328,2]
[341352038,1730819448616,-863.18,0.00032328,2]
[341352039,1730819448626,-1536.44,0.00032328,2]
[341352040,1730819448636,-3047.56,0.00032602,2]
[341352041,1730819448647,-500.0,0.00032602,2]
[341352042,1730819448657,-1214.78,0.00032602,2]
[341352043,1730819448667,-500.0,0.00032602,2]
[341352044,1730819448676,-1425.86,0.00032602,2]
[341352045,1730819448686,-1289.96,0.00032602,2]
[341352046,1730819448695,-513.76,0.00032602,2]
[341352047,1730819448705,-1714.86,0.00032602,2]
[341352048,1730819448715,-754.76458671,0.00032602,2]
[341352049,1730819448725,-1114.48,0.00032602,2]
[341352050,1730819448734,-7852.59,0.00032602,2]
[341352051,1730819448744,-1717.24,0.00032602,2]
[341352052,1730819448754,-802.28,0.00032602,2]
[341352053,1730819448763,-997.2,0.00032602,2]
[341352054,1730819448773,-1286.7,0.00032602,2]
[341352055,1730819448782,-1527.77,0.00032602,2]
[341352056,1730819448792,-7233.49,0.00032602,2]
[341352057,1730819448802,-530.43,0.00032602,2]
[341352058,1730819448812,-1898.53,0.00032602,2]
[341352059,1730819448823,-1595.33,0.00032602,2]
[341352060,1730819448833,-451.82066776,0.00032602,2]
[341352061,1730819448842,-1009.22,0.00032602,2]
[341352062,1730819448852,-863.18,0.00032602,2]
[341352063,1730819448862,-1536.44,0.00032602,2]
[341352064,1730819448872,-715.99689567,0.00032866,2]
[341352065,1730819448883,-1500.16,0.00032876,2]
[341352066,1730819448895,-1500.16,0.00032876,2]
[341352067,1730819448905,-1500.16,0.00032876,2]
[341352068,1730819448915,-1500.16,0.00032876,2]
[341352069,1730819448925,-1500.16,0.00032876,2]
[341352070,1730819448935,-1500.16,0.00032876,2]
[341352071,1730819448944,-1500.16,0.00032876,2]
[341352072,1730819448954,-1500.16,0.00032876,2]
[341352073,1730819448963,-1500.16,0.00032876,2]
[341352074,1730819448972,-1500.16,0.00032876,2]
[341352075,1730819448982,-1500.16,0.00032876,2]
[341352076,1730819448992,-1500.16,0.00032876,2]
[341352077,1730819449002,-1500.16,0.00032876,2]
[341352078,1730819449012,-1500.16,0.00032876,2]
[341352079,1730819449021,-1500.16,0.00032876,2]
[341352080,1730819449031,-1500.16,0.00032876,2]
[341352081,1730819449041,-1500.16,0.00032876,2]
[341352082,1730819449051,-1500.16,0.00032876,2]
[341352083,1730819449060,-1500.16,0.00032876,2]
[341352084,1730819449071,-1500.16,0.00032876,2]
[341352086,1730819449080,-1500.16,0.00032876,2]
[341352087,1730819449090,-3047.56,0.00032876,2]
[341352089,1730819449101,-386.12556332,0.00032876,2]
[341352091,1730819449111,-1214.78,0.00032876,2]
[341352092,1730819449121,-637.9732442,0.00032876,2]
[341352093,1730819449131,-1425.86,0.00032876,2]
[341352094,1730819449144,-1289.96,0.00032876,2]
[341352095,1730819449367,-513.76,0.00032876,2]
[341352096,1730819449384,-1714.86,0.00032876,2]
[341352097,1730819449399,-1114.48,0.00032876,2]
[341352098,1730819449409,-7852.59,0.00032876,2]
[341352099,1730819449419,-1717.24,0.00032876,2]
[341352100,1730819449428,-500.0,0.00032876,2]
[341352101,1730819449438,-802.28,0.00032876,2]
[341352102,1730819449448,-997.2,0.00032876,2]
[341352103,1730819449458,-1286.7,0.00032876,2]
[341352104,1730819449467,-1527.77,0.00032876,2]
[341352105,1730819449477,-7233.49,0.00032876,2]
[341352106,1730819449487,-530.43,0.00032876,2]
[341352107,1730819449497,-1898.53,0.00032876,2]
[341352108,1730819449508,-1595.33,0.00032876,2]
[341352109,1730819449518,-1009.22,0.00032876,2]
[341352110,1730819449529,-863.18,0.00032876,2]
[341352111,1730819449540,-1536.44,0.00032876,2]
[341352112,1730819449550,-238.50485838,0.00032877,2]
[341352113,1730819449574,-325.0,0.00032891,5]
[341352114,1730819449585,-997.1,0.0003301,2]
[341352115,1730819449597,-1500.16,0.0003315,2]
[341352116,1730819449608,-3047.56,0.0003315,2]
[341352117,1730819449619,-1214.78,0.0003315,2]
[341352118,1730819449630,-1425.86,0.0003315,2]
[341352119,1730819449642,-1289.96,0.0003315,2]
[341352120,1730819449653,-513.76,0.0003315,2]
[341352121,1730819449664,-1714.86,0.0003315,2]
[341352122,1730819449675,-1114.48,0.0003315,2]
[341352123,1730819449685,-7852.59,0.0003315,2]
[341352124,1730819449696,-1717.24,0.0003315,2]
[341352125,1730819449706,-802.28,0.0003315,2]
[341352126,1730819449716,-997.2,0.0003315,2]
[341352127,1730819449727,-1286.7,0.0003315,2]
[341352128,1730819449737,-1527.77,0.0003315,2]
[341352129,1730819449747,-7233.49,0.0003315,2]
[341352130,1730819449757,-530.43,0.0003315,2]
[341352131,1730819449767,-1898.53,0.0003315,2]
[341352132,1730819449777,-1595.33,0.0003315,2]
[341352133,1730819449787,-1009.22,0.0003315,2]
[341352134,1730819449799,-863.18,0.0003315,2]
[341352135,1730819449813,-1536.44,0.0003315,2]
[341352136,1730819449823,-180.0,0.00033151,2]
[341352137,1730819449833,-1852.07,0.00033423,2]
[341352138,1730819449844,-1500.16,0.00033424,2]
[341352139,1730819449854,-3047.56,0.00033424,2]
[341352140,1730819449865,-1214.78,0.00033424,2]
[341352141,1730819449874,-1425.86,0.00033424,2]
[341352142,1730819449886,-1289.96,0.00033424,2]
[341352143,1730819449899,-513.76,0.00033424,2]
[341352144,1730819449910,-1714.86,0.00033424,2]
[341352145,1730819449921,-1114.48,0.00033424,2]
[341352146,1730819449932,-7852.59,0.00033424,2]
[341352147,1730819449942,-1717.24,0.00033424,2]
[341352148,1730819449953,-802.28,0.00033424,2]
[341352149,1730819449963,-997.2,0.00033424,2]
[341352150,1730819449975,-1286.7,0.00033424,2]
[341352151,1730819449985,-1527.77,0.00033424,2]
[341352152,1730819449995,-7233.49,0.00033424,2]
[341352153,1730819450005,-530.43,0.00033424,2]
[341352154,1730819450016,-1898.53,0.00033424,2]
[341352155,1730819450026,-1595.33,0.00033424,2]
[341352156,1730819450037,-1009.22,0.00033424,2]
[341352157,1730819450048,-863.18,0.00033424,2]
[341352158,1730819450058,-1536.44,0.00033424,2]
[341352159,1730819450070,-1500.37444436,0.00033698,2]
[341352160,1730819450081,-3047.65371332,0.00033698,2]
[341352161,1730819450092,-1215.00714404,0.00033698,2]
[341352162,1730819450101,-1425.86976254,0.00033698,2]
[341352163,1730819450111,-1290.03137361,0.00033698,2]
[341352164,1730819450121,-513.96588753,0.00033698,2]
[341352165,1730819450131,-1714.89208598,0.00033698,2]
[341352166,1730819450144,-1114.52642382,0.00033698,2]
[341352167,1730819450155,-7852.61295833,0.00033698,2]
[341352168,1730819450165,-1717.27039892,0.00033698,2]
[341352169,1730819450174,-802.34,0.00033698,2]
[341352170,1730819450184,-997.39829678,0.00033698,2]
[341352171,1730819450193,-1286.79,0.00033698,2]